bitfinex/quotes_BTCUSD_20251202
["timestamp","ask_amount","ask_price","bid_price","bid_amount"]
[1764693549846,0.01100412,90875.0,90872.0,0.001]
[1764693550030,0.23108668,90875.0,90872.0,0.001]
[1764693550233,0.23108627,90876.0,90873.0,0.22008696]
[1764693550499,1e-08,90880.0,90876.0,0.032996]
[1764693550500,0.23107874,90879.0,90876.0,0.032996]
[1764693550694,0.23107874,90879.0,90876.0,0.25307379]
[1764693551021,0.01100364,90879.0,90876.0,0.25307379]
[1764693551158,1e-08,90880.0,90878.0,0.22007373]
[1764693551559,0.22007044,90880.0,90877.0,0.23107933]
[1764693551801,0.07286376,90878.0,90873.0,0.01100436]
[1764693552099,0.07286376,90878.0,90874.0,0.23108683]
[1764693552308,0.07286376,90878.0,90876.0,0.008]
[1764693552506,0.06186,90878.0,90875.0,0.01100412]
[1764693552871,0.22007526,90878.0,90877.0,0.008]
[1764693553067,0.22007868,90877.0,90875.0,0.03299612]
[1764693553497,1e-08,90880.0,90875.0,0.01100412]
[1764693553682,0.22008495,90874.0,90871.0,0.22009219]
[1764693553874,0.01100448,90872.0,90868.0,0.01100497]
[1764693554085,0.23109916,90871.0,90868.0,0.22009849]
[1764693554572,0.23109916,90871.0,90868.0,0.22009744]
[1764693554781,0.32615565,90872.0,90870.0,0.22009424]
[1764693554911,0.09506,90872.0,90870.0,0.22009255]
[1764693555262,0.16792461,90871.0,90868.0,0.24209148]
[1764693555436,0.15692,90871.0,90869.0,0.22009692]
[1764693555681,0.06186,90871.0,90869.0,0.22009692]
[1764693555861,0.06186,90871.0,90870.0,0.021992]
[1764693556064,0.06186,90871.0,90870.0,0.009]
[1764693556247,0.06186,90871.0,90869.0,0.021992]
[1764693556427,0.06186,90871.0,90868.0,0.01100497]
[1764693556632,0.06186,90871.0,90869.0,0.001]
[1764693556898,0.22009464,90870.0,90869.0,0.001]
[1764693557071,0.23052464,90870.0,90869.0,0.001]
[1764693557277,0.23052464,90870.0,90858.0,0.04189897]
[1764693557278,0.22012128,90859.0,90858.0,9.279e-05]
[1764693557480,0.29950128,90859.0,90858.0,9.279e-05]
[1764693557673,0.36409128,90859.0,90858.0,9.279e-05]
[1764693558928,0.0110086,90838.0,90833.0,0.04333]
[1764693559198,6.731e-05,90838.0,90833.0,0.04333]
[1764693559374,0.01100872,90837.0,90833.0,0.04333]
[1764693559588,6.731e-05,90838.0,90834.0,0.01100909]
[1764693559783,6.731e-05,90838.0,90837.0,0.22017459]
[1764693560449,0.01107591,90838.0,90834.0,0.23118957]
[1764693560580,0.01107591,90838.0,90833.0,0.065322]
[1764693560798,0.22017816,90836.0,90834.0,0.001]
[1764693561000,0.01100872,90837.0,90834.0,0.01200909]
[1764693561352,0.22017702,90836.0,90834.0,0.001]
[1764693561643,0.01100872,90837.0,90834.0,0.001]
[1764693561843,0.23118437,90837.0,90833.0,0.10285121]
[1764693562059,0.01100885,90836.0,90833.0,0.06085]
[1764693562264,0.22018031,90835.0,90834.0,0.001]
[1764693562468,0.31524031,90835.0,90834.0,0.01]
[1764693562628,0.37710031,90835.0,90834.0,0.009]
[1764693562967,0.22021338,90821.0,90814.0,0.01101151]
[1764693563165,0.00038,90822.0,90819.0,0.22021755]
[1764693563316,0.01101054,90822.0,90819.0,0.01101091]
[1764693563667,0.01101018,90825.0,90820.0,0.01101079]
[1764693563965,0.01101054,90822.0,90818.0,0.01101103]
[1764693564166,0.23122549,90821.0,90819.0,0.01756]
[1764693564671,0.23124429,90814.0,90804.0,0.01101273]
[1764693564892,0.01101212,90809.0,90802.0,0.01101297]
[1764693565090,0.04512188,90811.0,90807.0,0.01101236]
[1764693565296,0.09506,90814.0,90810.0,0.011012]
[1764693565511,0.09506,90814.0,90810.0,0.23125058]
[1764693565512,0.01101163,90813.0,90810.0,0.23125058]
[1764693565696,0.06186,90811.0,90810.0,0.011012]
[1764693565894,0.06186,90811.0,90809.0,0.22024135]
[1764693566074,0.03081,90816.0,90813.0,0.23124313]
[1764693566283,0.03081,90816.0,90814.0,0.22022981]
[1764693566628,0.01101163,90813.0,90809.0,0.01139498]
[1764693566800,0.03411,90813.0,90811.0,0.23124878]
[1764693566977,0.09506,90812.0,90811.0,0.23124793]
[1764693567199,0.06186,90812.0,90811.0,0.23124793]
[1764693567361,0.03081,90832.0,90825.0,0.01101018]
[1764693567564,0.09506,90841.0,90835.0,0.22017888]
[1764693567766,0.05885763,90846.0,90836.0,0.04333]
[1764693567985,0.05885763,90846.0,90831.0,0.01100945]
[1764693567986,0.06186,90836.0,90832.0,0.01100933]
[1764693568206,0.06125,90832.0,90831.0,0.01100945]
[1764693568441,0.23118144,90838.0,90835.0,0.001585]
[1764693568642,0.01100872,90837.0,90833.0,0.01100921]
[1764693568790,0.22017748,90836.0,90833.0,0.01100921]
[1764693569007,0.05157,90834.0,90833.0,0.01100921]
[1764693569415,0.09506,90848.0,90841.0,0.2201649]
[1764693569615,0.01100776,90845.0,90839.0,0.01100848]
[1764693569839,0.23116404,90845.0,90842.0,0.01100812]
[1764693570109,0.27901089,90846.0,90842.0,0.25316204]
[1764693570297,0.04785,90846.0,90844.0,0.22015702]
[1764693570500,0.04785,90846.0,90843.0,0.011008]
[1764693570704,0.04785,90846.0,90844.0,0.22015689]
[1764693571111,0.01100824,90841.0,90833.0,0.22018321]
[1764693571317,0.01100812,90842.0,90837.0,0.22017408]
[1764693571512,0.2311635,90845.0,90842.0,0.23116899]
[1764693571722,0.2790114,90846.0,90843.0,0.24215166]
[1764693571918,0.01100848,90839.0,90835.0,0.01100897]
[1764693572127,0.01100824,90841.0,90838.0,0.23117996]
[1764693572656,0.04785,90839.0,90838.0,0.23117996]
[1764693573562,0.22017525,90837.0,90835.0,0.001]
[1764693573928,0.22017535,90837.0,90835.0,0.001]
[1764693574130,0.04785,90839.0,90836.0,0.23118311]
[1764693574324,0.04785,90839.0,90834.0,0.01100909]
[1764693574325,0.09375,90838.0,90835.0,0.01100897]
[1764693574525,0.09375,90838.0,90836.0,0.22017661]
[1764693574909,0.04785,90839.0,90838.0,0.00849635]
[1764693575048,0.04785,90839.0,90838.0,0.00149635]
[1764693575258,0.04785,90839.0,90838.0,0.02348835]
[1764693575473,0.19406,90839.0,90838.0,0.00149635]
[1764693575751,0.10072,90839.0,90838.0,0.00149635]
[1764693575958,0.10072,90839.0,90838.0,0.00249635]
[1764693576316,0.10072,90839.0,90838.0,0.00949635]
[1764693576518,0.10072,90839.0,90838.0,0.021992]
[1764693576787,0.10072,90839.0,90809.0,0.04361]
[1764693576788,0.01101115,90817.0,90809.0,0.04361]
[1764693577000,0.04766,90821.0,90814.0,0.01101151]
[1764693577216,0.01101006,90826.0,90821.0,0.01101066]
[1764693577637,0.23122013,90823.0,90819.0,0.01101091]
[1764693577939,0.22017605,90837.0,90822.0,0.01101054]
[1764693578073,0.0110086,90838.0,90830.0,0.01100957]
[1764693578277,0.01101054,90822.0,90812.0,0.22023521]
[1764693578475,0.01101006,90826.0,90819.0,0.22021823]
[1764693578701,0.01100921,90833.0,90824.0,0.0110103]
[1764693578867,0.23120471,90829.0,90825.0,0.01101018]
[1764693579066,0.01100933,90832.0,90827.0,0.23120778]
[1764693579268,0.01100933,90832.0,90828.0,0.01100982]
[1764693579482,0.01100933,90832.0,90824.0,0.0110103]
[1764693579483,0.22021256,90822.0,90816.0,0.23123576]
[1764693579683,0.22021237,90822.0,90816.0,0.23123576]
[1764693579884,0.03883,90821.0,90819.0,0.2202165]
[1764693580105,0.03883,90821.0,90818.0,0.01101103]
[1764693580300,0.03883,90821.0,90819.0,0.22021715]
[1764693580786,0.01100982,90828.0,90824.0,0.23121526]
[1764693580988,0.23121242,90826.0,90821.0,0.23122294]
[1764693581178,0.22021484,90821.0,90819.0,0.001]
[1764693581350,0.22020368,90825.0,90820.0,0.01101079]
[1764693581553,0.22020745,90824.0,90820.0,0.01101079]
[1764693581801,0.23121775,90824.0,90820.0,0.01101079]
[1764693582036,0.22022308,90817.0,90816.0,0.02456]
[1764693582301,0.01101066,90821.0,90817.0,0.01101115]
[1764693582302,0.03922,90821.0,90817.0,0.01101115]
[1764693582598,0.09823,90831.0,90823.0,0.01101042]
[1764693582746,0.01100957,90830.0,90825.0,0.22020275]
[1764693582954,0.26786001,90827.0,90822.0,0.22068327]
[1764693583218,0.0110103,90824.0,90821.0,0.23122276]
[1764693583417,0.03922,90821.0,90818.0,0.01101103]
[1764693583674,0.23122296,90822.0,90818.0,0.01101103]
[1764693583789,0.23122538,90821.0,90818.0,0.01101103]
[1764693583992,0.28511083,90819.0,90816.0,0.007]
[1764693584194,0.08707,90817.0,90816.0,0.007]
[1764693584597,0.09808115,90817.0,90814.0,0.01756]
[1764693584797,0.08707,90817.0,90814.0,0.01756]
[1764693584994,0.08707,90817.0,90814.0,0.01101151]
[1764693585249,0.08707,90817.0,90814.0,0.24880142]
[1764693585395,0.08707,90817.0,90816.0,0.24221751]
[1764693585614,0.08665541,90817.0,90816.0,0.24921751]
[1764693585824,0.04724541,90817.0,90816.0,0.24221751]
[1764693586026,0.08723541,90817.0,90813.0,0.01101163]
[1764693586299,0.08723541,90817.0,90814.0,0.02857151]
[1764693586588,0.04724541,90817.0,90816.0,0.001]
[1764693586734,0.09764,90825.0,90821.0,0.01101066]
[1764693586934,0.09764,90825.0,90822.0,0.2202099]
[1764693587231,0.22020646,90824.0,90821.0,0.2312233]
[1764693587490,0.03958,90822.0,90820.0,0.22021387]
[1764693587690,0.039,90821.0,90816.0,0.22022414]
[1764693587866,0.22021096,90822.0,90818.0,0.2202203]
[1764693588073,0.23122462,90821.0,90816.0,0.22022414]
[1764693588415,0.32944921,90823.0,90818.0,0.22022023]
[1764693588556,0.09823,90823.0,90821.0,0.22021243]
[1764693588750,0.039,90818.0,90814.0,0.006]
[1764693588952,0.30688793,90815.0,90814.0,0.006]
[1764693589344,0.41554124,90815.0,90809.0,0.01139498]
[1764693589543,0.01101151,90814.0,90809.0,0.01139498]
[1764693589852,0.03959,90810.0,90809.0,0.00038286]
[1764693590055,0.04766,90815.0,90810.0,0.22024006]
[1764693590264,0.22021839,90819.0,90813.0,0.01101163]
[1764693590587,0.01100957,90830.0,90821.0,0.01101066]
[1764693590846,0.0110103,90824.0,90817.0,0.01101115]
[1764693591013,0.05001066,90821.0,90816.0,0.01101127]
[1764693591217,0.27022551,90821.0,90818.0,0.23123036]
[1764693591417,0.039,90821.0,90819.0,0.22021823]
[1764693591621,0.039,90821.0,90817.0,0.01101115]
[1764693591939,0.22022066,90818.0,90813.0,0.007]
[1764693592100,0.05001066,90821.0,90813.0,0.01801163]
[1764693592454,0.09823,90833.0,90820.0,0.23122417]
[1764693592655,0.09823,90833.0,90825.0,0.22020333]
[1764693592874,0.32942409,90833.0,90825.0,0.22020333]
[1764693592989,0.01100945,90831.0,90826.0,0.021992]
[1764693593206,0.01100945,90831.0,90823.0,0.23121733]
[1764693593207,0.05866994,90827.0,90823.0,0.23121733]
[1764693593422,0.2202016,90826.0,90825.0,0.021992]
[1764693593624,0.22020625,90824.0,90822.0,0.01101054]
[1764693593987,0.23121895,90823.0,90818.0,0.01101103]
[1764693594181,0.01101103,90818.0,90813.0,0.01701163]
[1764693594383,0.01101091,90819.0,90815.0,0.01101139]
[1764693594739,0.23122072,90823.0,90820.0,0.01101079]
[1764693595089,0.4845551,90851.0,90825.0,0.22020193]
[1764693595090,0.23120539,90829.0,90825.0,0.22020193]
[1764693595282,0.01100921,90833.0,90825.0,0.22020193]
[1764693595587,0.01100945,90831.0,90825.0,0.22020193]
[1764693595814,0.01100921,90833.0,90826.0,0.22020126]
[1764693595968,0.01100909,90834.0,90820.0,0.005]
[1764693595969,0.1843,90826.0,90820.0,0.005]
[1764693596140,0.03862,90821.0,90820.0,0.005]
[1764693596336,0.03862,90821.0,90819.0,0.22021815]
[1764693596541,0.0110103,90824.0,90813.0,0.22023218]
[1764693596946,0.01101079,90820.0,90814.0,0.01101151]
[1764693597172,0.01101079,90820.0,90817.0,0.23123407]
[1764693597363,0.01101066,90821.0,90818.0,0.021992]
[1764693597650,0.2312235,90822.0,90818.0,0.01101103]
[1764693597854,0.2202159,90820.0,90818.0,0.03300303]
[1764693598024,0.23121982,90823.0,90819.0,0.01101091]
[1764693598226,0.23122386,90822.0,90819.0,0.22021735]
[1764693598504,0.01101079,90820.0,90815.0,0.01756]
[1764693598693,0.01101103,90818.0,90815.0,0.01756]
[1764693598851,0.2202236,90817.0,90815.0,0.01756]
[1764693599211,0.22022551,90816.0,90815.0,0.01756]
[1764693599603,0.22022403,90817.0,90815.0,0.01756]
[1764693599803,0.22022551,90816.0,90815.0,0.01756]
[1764693600024,0.22022551,90816.0,90815.0,0.02456]
[1764693600238,0.01101079,90820.0,90815.0,0.02456]
[1764693600430,0.6245223,90830.0,90821.0,0.01101066]
[1764693600649,0.85572449,90830.0,90821.0,0.01101066]
[1764693600856,0.22022551,90816.0,90815.0,0.006]
[1764693600968,0.28511551,90816.0,90815.0,0.007]
[1764693601178,0.35758551,90816.0,90815.0,0.007]
[1764693601448,0.35758551,90816.0,90815.0,0.001]
[1764693601687,0.35758551,90816.0,90815.0,0.007]
[1764693601895,0.35758551,90816.0,90815.0,0.00067964]
[1764693601896,0.48928258,90816.0,90815.0,0.00067964]
[1764693602097,0.22024006,90810.0,90789.0,0.23130535]
[1764693602299,0.26451258,90810.0,90789.0,0.23130535]
[1764693602503,0.40161258,90810.0,90792.0,0.22028322]
[1764693602705,0.40161258,90810.0,90807.0,0.00023645]
[1764693603120,0.6245223,90790.0,90784.0,0.01101515]
[1764693603269,0.63553672,90790.0,90785.0,0.2313137]
[1764693603473,0.01101479,90787.0,90784.0,0.00011493]
[1764693603681,0.26825071,90785.0,90784.0,0.00011493]
[1764693604154,0.36598071,90785.0,90784.0,0.00011493]
[1764693605158,0.14568,90785.0,90784.0,0.00011493]
[1764693605359,0.03946,90789.0,90784.0,0.01113008]
[1764693605724,0.03946,90789.0,90787.0,0.22029536]
[1764693605982,0.22027281,90797.0,90787.0,0.22029536]
[1764693605983,0.09294,90802.0,90799.0,0.23127985]
[1764693606173,0.04766,90804.0,90802.0,0.2202594]
[1764693606380,0.04703,90809.0,90807.0,0.22024645]
[1764693606712,0.04719,90817.0,90804.0,0.01101273]
[1764693606713,0.01101127,90816.0,90804.0,0.01101273]
[1764693606919,0.04631,90808.0,90806.0,0.2202486]
[1764693607432,0.01101151,90814.0,90811.0,0.22023701]
[1764693607590,0.01101151,90814.0,90811.0,0.03300388]
[1764693607802,0.04719,90817.0,90813.0,0.01101163]
[1764693607956,0.01101018,90825.0,90814.0,0.01101151]
[1764693608160,0.22020704,90824.0,90819.0,0.01101091]
[1764693608368,0.04766,90826.0,90824.0,0.22020442]
[1764693608563,0.04766,90826.0,90821.0,0.23122404]
[1764693608807,0.05867006,90826.0,90821.0,0.23122392]
[1764693609011,0.04804239,90826.0,90823.0,0.01101042]
[1764693609186,0.27925507,90826.0,90823.0,0.01101042]
[1764693609610,0.04804239,90826.0,90824.0,0.22020421]
[1764693609814,0.04804239,90826.0,90821.0,0.01101066]
[1764693610019,0.2792539,90826.0,90822.0,0.01101054]
[1764693610352,0.05905245,90826.0,90821.0,0.22121324]
[1764693610550,0.27925392,90826.0,90822.0,0.24220259]
[1764693610841,0.23121471,90825.0,90824.0,0.001]
[1764693611190,0.04804239,90826.0,90824.0,0.22120596]
[1764693611600,0.26824515,90826.0,90824.0,0.001]
[1764693611793,0.13966,90825.0,90824.0,0.001]
[1764693612004,0.04718,90825.0,90824.0,0.001]
[1764693612484,0.04718,90825.0,90823.0,0.22020701]
[1764693612705,0.00038239,90826.0,90825.0,0.22020368]
[1764693613108,0.00038239,90826.0,90821.0,0.03300266]
[1764693613256,0.00038239,90826.0,90824.0,0.22020585]
[1764693613489,0.2205838,90826.0,90824.0,0.001]
[1764693613690,0.0110103,90824.0,90821.0,0.23122202]
[1764693613886,0.01101079,90820.0,90816.0,0.23123603]
[1764693614115,0.22022066,90818.0,90816.0,0.021992]
[1764693614277,0.01101115,90817.0,90814.0,0.23124157]
[1764693614473,0.22022575,90816.0,90814.0,0.01101151]
[1764693614710,0.01101139,90815.0,90812.0,0.01756]
[1764693614885,0.22058369,90826.0,90818.0,0.01101103]
[1764693615099,0.0110103,90824.0,90820.0,0.22021554]
[1764693615298,0.00038239,90826.0,90823.0,0.01101042]
[1764693615480,0.00038239,90826.0,90825.0,0.22020368]
[1764693616242,0.00038239,90826.0,90825.0,0.24219568]
[1764693616388,0.00038239,90826.0,90825.0,0.22020368]
[1764693617627,0.00038239,90826.0,90825.0,0.28499368]
[1764693617992,0.00038239,90826.0,90825.0,0.39678368]
[1764693619063,0.00038239,90826.0,90825.0,0.41877568]
[1764693619918,0.00038239,90826.0,90825.0,0.30355368]
[1764693620272,0.00038239,90826.0,90825.0,0.32554568]
[1764693620504,0.00038239,90826.0,90825.0,0.30355368]
[1764693620911,0.00038239,90826.0,90825.0,0.32554568]
[1764693621967,0.00038239,90826.0,90825.0,0.41877568]
[1764693622248,0.00038239,90826.0,90825.0,0.30355368]
[1764693622447,0.00038239,90826.0,90825.0,0.24176368]
[1764693622599,0.00038239,90826.0,90825.0,0.30355368]
[1764693622806,0.00038239,90826.0,90825.0,0.41877568]
[1764693624363,0.00038239,90826.0,90825.0,0.004]
[1764693624511,0.00038239,90826.0,90825.0,0.24176368]
[1764693624721,0.00038239,90826.0,90825.0,0.30355368]
[1764693624969,0.00038239,90826.0,90825.0,0.39678368]
[1764693625172,0.00038239,90826.0,90825.0,0.41877568]
[1764693625543,0.00038239,90826.0,90825.0,0.39678368]
[1764693625750,0.00038239,90826.0,90825.0,0.4410562]
[1764693625951,2.39e-06,90826.0,90825.0,0.52436785]
[1764693626169,0.00149675,90842.0,90841.0,0.2421569]
[1764693626385,0.00149675,90842.0,90841.0,0.3215069]
[1764693626768,0.00149675,90842.0,90841.0,0.2995149]
[1764693626896,0.00149675,90842.0,90841.0,0.3927449]
[1764693627107,0.22165922,90842.0,90841.0,0.17258]
[1764693627474,0.22017002,90840.0,90837.0,0.04343]
[1764693627768,0.00149675,90842.0,90838.0,0.01756]
[1764693627974,0.00149675,90842.0,90841.0,0.2201649]
[1764693628170,0.00549675,90842.0,90841.0,0.2201649]
[1764693628327,0.00549675,90842.0,90840.0,0.021992]
[1764693628584,0.00349675,90842.0,90837.0,0.04343]
[1764693628733,0.00349675,90842.0,90840.0,0.22016522]
[1764693628931,0.00349675,90842.0,90841.0,0.021992]
[1764693629143,0.00349675,90842.0,90840.0,0.24215722]
[1764693629334,0.00349675,90842.0,90840.0,0.021992]
[1764693629555,0.00149675,90842.0,90840.0,0.021992]
[1764693629762,0.00149675,90842.0,90840.0,0.24215842]
[1764693630178,0.00149675,90842.0,90840.0,0.22016634]
[1764693630378,0.00149675,90842.0,90841.0,0.021992]
[1764693630595,0.00149675,90842.0,90840.0,0.22416634]
[1764693631054,0.00149675,90842.0,90840.0,0.22316634]
[1764693631254,0.00149675,90842.0,90841.0,0.15502]
[1764693631450,0.00149675,90842.0,90841.0,0.178012]
[1764693631655,0.00149675,90842.0,90841.0,0.1763562]
[1764693631862,0.00149675,90842.0,90841.0,0.1543642]
[1764693632058,0.00149675,90842.0,90841.0,0.1763562]
[1764693632774,0.00149675,90842.0,90841.0,0.1753562]
[1764693633779,0.00149675,90842.0,90841.0,0.1783562]
[1764693634035,0.00149675,90842.0,90841.0,0.1763562]
[1764693634437,0.00149675,90842.0,90841.0,0.1803562]
[1764693634939,0.00149675,90842.0,90841.0,0.3960491]
[1764693635080,0.00149675,90842.0,90841.0,0.4180411]
[1764693635281,0.00149675,90842.0,90841.0,0.3960491]
[1764693635914,0.00149675,90842.0,90841.0,0.4180411]
[1764693636189,0.00149675,90842.0,90841.0,0.3960491]
[1764693636596,0.00149675,90842.0,90841.0,0.4180411]
[1764693636938,0.00149675,90842.0,90841.0,0.3785291]
[1764693637184,0.00149675,90842.0,90841.0,0.3960491]
[1764693637602,0.00149675,90842.0,90841.0,0.4180411]
[1764693638025,0.00149675,90842.0,90841.0,0.3960491]
[1764693638347,0.00149675,90842.0,90841.0,0.4180411]
[1764693639567,0.00149675,90842.0,90841.0,0.3960491]
[1764693639765,0.00149675,90842.0,90841.0,0.4180411]
[1764693641182,0.00149675,90842.0,90841.0,0.3960491]
[1764693641376,0.00149675,90842.0,90841.0,0.4180411]
[1764693643652,0.00149675,90842.0,90841.0,0.4170411]
[1764693644108,0.00349675,90842.0,90841.0,0.4170411]
[1764693644300,0.00349675,90842.0,90841.0,0.4130411]
[1764693644505,0.00149675,90842.0,90841.0,0.4130411]
[1764693644823,0.00949675,90842.0,90841.0,0.4130411]
[1764693645870,0.01049675,90842.0,90841.0,0.4130411]
[1764693648151,1e-08,90880.0,90879.0,0.22007284]
[1764693648334,0.00011478,90880.0,90879.0,0.39393284]
[1764693648534,0.00011478,90880.0,90879.0,0.41592484]
[1764693649156,0.00123674,90880.0,90879.0,0.41592484]
[1764693649357,0.00123674,90880.0,90879.0,0.41692484]
[1764693650411,0.00123674,90880.0,90879.0,0.39493284]
[1764693650621,0.00123674,90880.0,90879.0,0.41692484]
[1764693650838,0.00123674,90880.0,90879.0,0.39493284]
[1764693651254,0.00123674,90880.0,90879.0,0.32143484]
[1764693651518,0.00123674,90880.0,90879.0,0.30144284]
[1764693651725,0.00123674,90880.0,90879.0,0.41892484]
[1764693652282,0.00123674,90880.0,90879.0,0.39693284]
[1764693652487,0.00123674,90880.0,90879.0,0.30144284]
[1764693652710,0.00123674,90880.0,90879.0,0.39693284]
[1764693653319,0.00123674,90880.0,90879.0,0.40140484]
[1764693653655,0.00123674,90880.0,90879.0,0.41892484]
[1764693654340,0.00123674,90880.0,90879.0,0.39693284]
[1764693654479,0.00123674,90880.0,90879.0,0.41892484]
[1764693654921,0.00123674,90880.0,90879.0,0.30144284]
[1764693655125,0.36031716,90880.0,90879.0,0.003]
[1764693655864,0.28711716,90880.0,90879.0,0.003]
[1764693656066,0.28711716,90880.0,90879.0,0.002]
[1764693656067,0.36031716,90880.0,90879.0,0.002]
[1764693656285,0.14024674,90880.0,90879.0,0.002]
[1764693656515,0.14024674,90880.0,90871.0,0.01100461]
[1764693656516,0.23109062,90874.0,90870.0,0.22009432]
[1764693656661,0.00073,90876.0,90873.0,0.01100436]
[1764693656860,0.23107922,90878.0,90875.0,0.23108444]
[1764693657443,0.0843183,90880.0,90875.0,0.01100412]
[1764693657728,0.0010039,90876.0,90875.0,0.23108618]
[1764693657860,0.0668139,90876.0,90871.0,0.01100461]
[1764693658066,0.22008354,90875.0,90872.0,0.23109216]
[1764693658298,0.28589028,90876.0,90873.0,0.22008509]
[1764693658463,0.23108608,90877.0,90874.0,0.22008336]
[1764693658678,0.22008012,90876.0,90873.0,0.002]
[1764693658873,0.23108412,90876.0,90875.0,0.001]
[1764693659294,0.29689412,90876.0,90875.0,0.001]
[1764693659494,0.06581,90876.0,90875.0,0.22108253]
[1764693659675,0.06581,90876.0,90875.0,0.22008253]
[1764693660075,0.2858901,90876.0,90875.0,0.002]
[1764693660293,0.00011478,90880.0,90875.0,0.01300412]
[1764693660476,0.2669101,90876.0,90875.0,0.002]
[1764693661085,0.3589001,90876.0,90875.0,0.002]
[1764693661287,0.04683,90876.0,90875.0,0.002]
[1764693661491,0.3589001,90876.0,90875.0,0.002]
[1764693661978,0.3589001,90876.0,90875.0,0.003]
[1764693662184,0.22007977,90877.0,90875.0,0.003]
[1764693662389,0.00011478,90880.0,90877.0,0.2200754]
[1764693662634,0.00011478,90880.0,90877.0,0.01100388]
[1764693662810,0.00011478,90880.0,90877.0,0.05443388]
[1764693663001,0.00011478,90880.0,90878.0,0.22007518]
[1764693663360,0.00011478,90880.0,90877.0,0.2745096]
[1764693663560,0.00011478,90880.0,90879.0,0.22007284]
[1764693663989,0.00011478,90880.0,90879.0,0.37641284]
[1764693664163,0.00011478,90880.0,90879.0,0.22007284]
[1764693664369,0.00123674,90880.0,90879.0,0.22007284]
[1764693665056,0.22007526,90878.0,90877.0,0.04343]
[1764693665258,0.22007526,90878.0,90846.0,0.44030549]
[1764693665259,0.2200801,90876.0,90869.0,0.01100485]
[1764693665460,0.23108971,90874.0,90867.0,0.01100509]
[1764693665660,0.23108971,90874.0,90866.0,0.02852521]
[1764693665661,0.01100461,90871.0,90866.0,0.01752]
[1764693665866,0.01100448,90872.0,90866.0,0.01752]
[1764693666066,0.23110155,90870.0,90866.0,0.24862822]
[1764693666262,0.23110136,90870.0,90867.0,0.23110458]
[1764693666512,0.22009202,90872.0,90869.0,0.23110191]
[1764693666719,0.22009239,90871.0,90869.0,0.01100485]
[1764693666930,0.22009239,90871.0,90867.0,0.01100509]
[1764693667129,0.01100448,90872.0,90869.0,0.220097]
[1764693667328,0.22008484,90875.0,90872.0,0.22008964]
[1764693667718,0.00011478,90880.0,90872.0,0.01100448]
[1764693667844,0.00011478,90880.0,90877.0,0.01100388]
[1764693668049,0.00011478,90880.0,90879.0,0.28269284]
[1764693668230,0.22018752,90880.0,90876.0,0.011004]
[1764693668436,0.00011478,90880.0,90878.0,0.22007493]
[1764693668638,0.22007355,90879.0,90876.0,0.23108302]
[1764693668856,0.00011478,90880.0,90877.0,0.22007765]
[1764693669055,0.00011478,90880.0,90877.0,0.23108132]
[1764693669255,0.0111183,90880.0,90874.0,0.01100424]
[1764693669490,0.01100424,90874.0,90870.0,0.22009415]
[1764693669694,0.23199135,90874.0,90871.0,0.01100461]
[1764693669900,0.0009,90874.0,90873.0,0.22008737]
[1764693670184,0.01100388,90877.0,90872.0,0.23109194]
[1764693670185,0.22008289,90875.0,90872.0,0.23109194]
[1764693670398,0.22008311,90875.0,90872.0,0.23109194]
[1764693670809,0.23108872,90876.0,90872.0,0.01100448]
[1764693671009,0.23108872,90876.0,90873.0,0.23108941]
[1764693671223,0.011004,90876.0,90874.0,0.001]
[1764693671429,0.23108181,90877.0,90874.0,0.2320875]
[1764693671629,0.00097439,90875.0,90874.0,0.2310875]
[1764693671834,0.00097439,90875.0,90873.0,0.01400436]
[1764693672039,0.22008495,90874.0,90873.0,0.003]
[1764693672235,0.27227982,90874.0,90873.0,0.003]
[1764693672490,0.36230982,90874.0,90873.0,0.003]
[1764693672687,0.22011401,90862.0,90856.0,0.01752]
[1764693672896,0.01100582,90861.0,90856.0,0.01752]
[1764693673047,0.01100606,90859.0,90856.0,0.01100642]
[1764693673246,0.0618663,90857.0,90853.0,0.22013457]
[1764693673484,0.23113717,90856.0,90852.0,0.01100691]
[1764693673651,0.05086,90857.0,90855.0,0.22013088]
[1764693673836,0.22012649,90857.0,90854.0,0.01100667]
[1764693674040,0.01100812,90842.0,90833.0,0.01100921]
[1764693674250,0.0110086,90838.0,90832.0,0.05443933]
[1764693674452,0.23117823,90839.0,90834.0,0.2311907]
[1764693674679,0.23117823,90839.0,90835.0,0.23118729]
[1764693674680,0.23117863,90839.0,90835.0,0.23118729]
[1764693674877,0.01100739,90848.0,90839.0,0.01100848]
[1764693675117,0.23115547,90848.0,90844.0,0.01100788]
[1764693675319,0.23115547,90848.0,90837.0,0.01100872]
[1764693675320,0.07630776,90845.0,90832.0,0.04343]
[1764693675526,0.01100994,90827.0,90816.0,0.01101127]
[1764693675688,0.22021823,90819.0,90810.0,0.011012]
[1764693675889,0.06472,90833.0,90798.0,0.08157614]
[1764693675890,0.01101188,90811.0,90803.0,0.01101285]
[1764693676060,0.05091,90819.0,90813.0,0.23124383]
[1764693676258,0.01101091,90819.0,90813.0,0.01101163]
[1764693676457,0.01101115,90817.0,90802.0,0.01101297]
[1764693676685,0.22023085,90814.0,90808.0,0.01101224]
[1764693676892,0.01101163,90813.0,90808.0,0.00038239]
[1764693677070,0.04701,90809.0,90808.0,0.00038239]
[1764693677272,0.09792,90809.0,90808.0,0.00038239]
[1764693677523,0.18834,90809.0,90808.0,0.00038239]
[1764693677914,0.18834,90809.0,90808.0,0.00138239]
[1764693678400,0.09792,90809.0,90808.0,0.00038239]
[1764693678598,0.04701,90809.0,90808.0,0.00038239]
[1764693678798,0.18835,90809.0,90808.0,0.00138239]
[1764693679233,0.09003,90818.0,90815.0,0.01101139]
[1764693679388,0.04701,90820.0,90817.0,0.23123261]
[1764693679594,0.04701,90820.0,90817.0,0.01101115]
[1764693679910,0.04701,90820.0,90818.0,0.22022066]
[1764693680434,0.04701,90832.0,90830.0,0.22019056]
[1764693680827,0.04701,90832.0,90829.0,0.01100969]
[1764693681061,0.04701,90832.0,90829.0,0.23120263]
[1764693681234,0.01100994,90827.0,90814.0,0.01101151]
[1764693681526,0.23121238,90826.0,90822.0,0.23122035]
[1764693681914,0.10142945,90831.0,90823.0,0.01101042]
[1764693681915,0.32161905,90831.0,90823.0,0.01101042]
[1764693682121,0.32161948,90831.0,90827.0,0.22019788]
[1764693682329,0.09042,90831.0,90829.0,0.22019186]
[1764693682484,0.04701,90832.0,90830.0,0.22019084]
[1764693682686,0.23119859,90831.0,90826.0,0.01101006]
[1764693682881,0.05801933,90832.0,90828.0,0.01100982]
[1764693683136,0.04701,90832.0,90829.0,0.23120298]
[1764693683397,0.04701,90832.0,90830.0,0.22019067]
[1764693683625,0.05801836,90840.0,90833.0,0.01100921]
[1764693683797,0.23118417,90837.0,90833.0,0.23119273]